bitfinex/quotes_BTCUSD_20241201
["timestamp","ask_amount","ask_price","bid_price","bid_amount"]
[1733067629561,0.10457321,97184.0,97183.0,0.01059735]
[1733067630020,0.10657321,97184.0,97183.0,0.01059735]
[1733067630247,0.10457321,97184.0,97183.0,0.01059735]
[1733067630722,0.10657321,97184.0,97183.0,0.01059735]
[1733067630945,0.10457321,97184.0,97183.0,0.01059735]
[1733067631175,0.10557321,97184.0,97183.0,0.01059735]
[1733067631426,0.10457321,97184.0,97183.0,0.01059735]
[1733067633489,0.10657321,97184.0,97183.0,0.01059735]
[1733067633735,0.10457321,97184.0,97183.0,0.01059735]
[1733067633986,0.10557321,97184.0,97183.0,0.01059735]
[1733067636951,0.15728853,97184.0,97183.0,0.01059735]
[1733067637203,0.10557321,97184.0,97183.0,0.01059735]
[1733067637456,0.25067321,97184.0,97183.0,3.5e-07]
[1733067637671,0.40067321,97184.0,97183.0,3.5e-07]
[1733067637895,0.43031902,97184.0,97183.0,3.5e-07]
[1733067638352,0.42931902,97184.0,97183.0,3.5e-07]
[1733067638787,0.43431902,97184.0,97183.0,3.5e-07]
[1733067639020,0.42931902,97184.0,97183.0,3.5e-07]
[1733067640549,0.43031902,97184.0,97183.0,3.5e-07]
[1733067640765,0.43931902,97184.0,97183.0,3.5e-07]
[1733067641441,0.43831902,97184.0,97183.0,3.5e-07]
[1733067641657,0.40867321,97184.0,97183.0,3.5e-07]
[1733067642313,0.43830228,97184.0,97183.0,3.5e-07]
[1733067642526,0.45905307,97184.0,97183.0,3.5e-07]
[1733067642743,0.42942369,97184.0,97183.0,3.5e-07]
[1733067643442,0.45905088,97184.0,97183.0,3.5e-07]
[1733067643652,0.45954,97184.0,97183.0,3.5e-07]
[1733067643872,0.43542369,97184.0,97183.0,3.5e-07]
[1733067644794,0.43518335,97184.0,97183.0,3.5e-07]
[1733067645476,0.35908335,97184.0,97183.0,3.5e-07]
[1733067645936,0.31308335,97184.0,97183.0,3.5e-07]
[1733067647054,0.29233287,97184.0,97183.0,3.5e-07]
[1733067650762,0.343539,97184.0,97183.0,3.5e-07]
[1733067651686,0.29233287,97184.0,97183.0,3.5e-07]
[1733067652997,0.31314974,97184.0,97183.0,3.5e-07]
[1733067653216,0.44234974,97184.0,97183.0,3.5e-07]
[1733067656551,0.43734974,97184.0,97183.0,3.5e-07]
[1733067656977,0.41653287,97184.0,97183.0,3.5e-07]
[1733067657837,0.41826027,97184.0,97183.0,3.5e-07]
[1733067660644,0.434594,97183.0,97177.0,5e-08]
[1733067660886,0.434594,97183.0,97176.0,0.04571279]
[1733067660887,0.30865221,97178.0,97176.0,0.04571279]
[1733067661123,0.12766249,97177.0,97176.0,0.04571279]
[1733067661551,0.12766249,97177.0,97176.0,0.04825439]
[1733067661769,0.12766249,97177.0,97176.0,0.04571279]
[1733067661995,0.12766249,97177.0,97176.0,0.04825439]
[1733067662452,0.12766249,97177.0,97176.0,0.04571279]
[1733067662672,0.27766249,97177.0,97176.0,0.02480427]
[1733067662911,0.27584521,97177.0,97176.0,0.02480427]
[1733067664443,0.28884521,97177.0,97176.0,0.02480427]
[1733067665359,0.28884521,97177.0,97176.0,0.02480427]
[1733067668307,0.36153492,97177.0,97176.0,0.02480427]
[1733067669012,0.28884521,97177.0,97176.0,0.02480427]
[1733067669228,0.28884521,97177.0,97176.0,0.02566797]
[1733067671705,0.31852914,97177.0,97176.0,0.02566797]
[1733067675592,0.89982105,97170.0,97167.0,0.01]
[1733067675825,0.12584521,97168.0,97167.0,0.01]
[1733067676041,0.12766249,97168.0,97167.0,0.01]
[1733067676985,0.12766249,97168.0,97167.0,0.01059325]
[1733067677177,0.13266249,97168.0,97167.0,0.01059325]
[1733067678947,0.13466249,97168.0,97167.0,0.01059325]
[1733067679631,0.28466249,97168.0,97167.0,0.01059325]
[1733067679845,0.30780011,97168.0,97167.0,0.01059325]
[1733067680068,0.28284521,97168.0,97167.0,0.01059325]
[1733067680934,0.28284521,97168.0,97167.0,0.01145705]
[1733067685891,0.31253926,97168.0,97167.0,0.01145705]
[1733067686145,0.28284521,97168.0,97167.0,0.01145705]
[1733067689363,0.28284521,97168.0,97167.0,0.00145705]
[1733067690108,0.61245331,97150.0,97136.0,0.0743052]
[1733067690358,0.71529852,97150.0,97136.0,0.0743052]
[1733067691906,0.71529852,97150.0,97149.0,0.07263471]
[1733067693042,0.71529852,97150.0,97149.0,0.19683471]
[1733067693719,0.73829852,97150.0,97149.0,0.19683471]
[1733067695027,0.73829852,97150.0,97149.0,0.15029871]
[1733067698894,0.72298597,97150.0,97149.0,0.15029871]
[1733067705352,0.69998597,97150.0,97149.0,0.15029871]
[1733067711432,0.77278597,97150.0,97149.0,0.07349871]
[1733067711618,0.72298597,97150.0,97149.0,0.07349871]
[1733067712312,0.69998597,97150.0,97149.0,0.07249871]
[1733067712548,0.72298597,97150.0,97149.0,0.07249871]
[1733067712771,0.69998597,97150.0,97149.0,0.07349871]
[1733067713056,0.69998597,97150.0,97149.0,0.07249871]
[1733067713533,0.72298597,97150.0,97149.0,0.19979871]
[1733067713787,0.72298597,97150.0,97149.0,0.22707558]
[1733067714247,0.72298597,97150.0,97149.0,0.22196386]
[1733067714950,0.72698597,97150.0,97149.0,0.22196386]
[1733067715188,0.60114076,97150.0,97149.0,0.22196386]
[1733067715430,0.60114076,97150.0,97149.0,0.23196386]
[1733067715645,0.60114076,97150.0,97149.0,0.23630375]
[1733067715878,0.60114076,97150.0,97149.0,0.23530375]
[1733067715879,0.59714076,97150.0,97149.0,0.23530375]
[1733067716341,0.59714076,97150.0,97149.0,0.23630375]
[1733067716570,0.59714076,97150.0,97149.0,0.23530375]
[1733067717013,0.61802919,97150.0,97149.0,0.23530375]
[1733067717224,0.61802919,97150.0,97149.0,0.20802688]
[1733067717442,0.59714076,97150.0,97149.0,0.20802688]
[1733067718834,0.59714076,97150.0,97149.0,0.20902688]
[1733067719058,0.59714076,97150.0,97149.0,0.20802688]
[1733067719529,0.59814076,97150.0,97149.0,0.20902688]
[1733067719752,0.59986876,97150.0,97149.0,0.20902688]
[1733067719973,0.59886876,97150.0,97149.0,0.20802688]
[1733067720496,0.002728,97150.0,97140.0,0.07214687]
[1733067720715,0.002728,97150.0,97149.0,0.00354864]
[1733067720967,0.002728,97150.0,97141.0,0.00182169]
[1733067721201,0.205869,97149.0,97141.0,0.00182169]
[1733067721433,0.205869,97149.0,97142.0,0.00353754]
[1733067722108,0.205869,97149.0,97137.0,0.00182172]
[1733067722321,0.411738,97149.0,97143.0,0.00353749]
[1733067722548,0.205869,97149.0,97142.0,0.00534846]
[1733067723043,0.205869,97149.0,97143.0,0.00353749]
[1733067723272,0.001,97149.0,97143.0,0.00535921]
[1733067723508,0.002,97149.0,97144.0,0.1227]
[1733067723705,0.002,97149.0,97144.0,0.12805915]
[1733067724187,0.205871,97148.0,97144.0,0.12805915]
[1733067724432,0.205871,97148.0,97144.0,0.12623745]
[1733067725101,0.411743,97148.0,97144.0,0.12623745]
[1733067725341,0.001,97149.0,97144.0,0.12623745]
[1733067725591,0.205871,97148.0,97144.0,0.12623745]
[1733067725812,0.205873,97147.0,97144.0,0.12623745]
[1733067727637,0.206873,97147.0,97144.0,0.12623745]
[1733067728533,0.206873,97147.0,97145.0,0.01262375]
[1733067728739,0.001,97147.0,97145.0,0.01616116]
[1733067728946,0.002,97147.0,97145.0,0.01798286]
[1733067729651,0.001,97147.0,97145.0,0.01798286]
[1733067729874,0.002,97147.0,97145.0,0.01798286]
[1733067730095,0.002,97147.0,97146.0,0.01406829]
[1733067730314,0.001,97147.0,97146.0,0.14176829]
[1733067730533,0.002,97147.0,97146.0,0.14712733]
[1733067731442,0.001,97147.0,97146.0,0.14712733]
[1733067731708,0.002,97147.0,97146.0,0.14712733]
[1733067732161,0.001,97147.0,97146.0,0.14712733]
[1733067732609,0.002,97147.0,97146.0,0.14712733]
[1733067733731,0.001,97147.0,97146.0,0.14712733]
[1733067733965,0.002,97147.0,97146.0,0.14712733]
[1733067734176,0.001,97147.0,97146.0,0.14712733]
[1733067734401,0.002,97147.0,97146.0,0.14712733]
[1733067735502,0.002,97147.0,97146.0,0.13305904]
[1733067743601,0.001,97147.0,97146.0,0.13305904]
[1733067744043,0.0037282,97147.0,97146.0,0.13305904]
[1733067744705,0.00339785,97147.0,97146.0,0.13305904]
[1733067745644,0.00239785,97147.0,97146.0,0.13305904]
[1733067746094,0.00339785,97147.0,97146.0,0.13305904]
[1733067748784,0.00170696,97150.0,97148.0,0.0816]
[1733067749001,0.00170696,97150.0,97149.0,0.00182139]
[1733067749251,0.00170696,97150.0,97149.0,0.21121496]
[1733067749464,0.00170696,97150.0,97149.0,0.20769039]
[1733067749688,0.00170696,97150.0,97149.0,0.21121496]
[1733067750139,0.00270696,97150.0,97149.0,0.21121496]
[1733067750557,0.00170696,97150.0,97149.0,0.21121496]
[1733067750986,0.00270696,97150.0,97149.0,0.21121496]
[1733067751190,0.00370696,97150.0,97149.0,0.21121496]
[1733067751665,0.00270696,97150.0,97149.0,0.21121496]
[1733067751934,0.00370696,97150.0,97149.0,0.21221496]
[1733067757214,0.00370696,97150.0,97149.0,0.21307896]
[1733067768169,0.00370696,97150.0,97149.0,0.31592417]
[1733067768417,0.00370696,97150.0,97149.0,0.36230278]
[1733067769108,0.00270696,97150.0,97149.0,0.43640278]
[1733067769359,0.00170696,97150.0,97149.0,0.46853995]
[1733067769574,0.00270696,97150.0,97149.0,0.46953995]
[1733067770270,0.00270696,97150.0,97149.0,0.47353995]
[1733067770703,0.00270696,97150.0,97149.0,0.46953995]
[1733067771157,0.00370696,97150.0,97149.0,0.47453995]
[1733067773597,0.00370696,97150.0,97149.0,0.47467834]
[1733067774550,0.00350897,97150.0,97149.0,0.47453995]
[1733067777901,0.00326926,97150.0,97149.0,0.47453995]
[1733067785460,0.00326926,97150.0,97149.0,0.35123995]
[1733067786376,0.00326926,97150.0,97149.0,0.31910278]
[1733067791011,0.00326926,97150.0,97149.0,0.35121692]
[1733067797788,0.13207226,97150.0,97149.0,0.35121692]
[1733067803568,0.13207226,97150.0,97149.0,0.57991692]
[1733067803791,0.13207226,97150.0,97149.0,0.62521692]
[1733067805299,0.13107226,97150.0,97149.0,0.62421692]
[1733067805505,0.07267024,97150.0,97149.0,0.61921692]
[1733067805927,0.07367024,97150.0,97149.0,0.62621692]
[1733067806581,0.07267024,97150.0,97149.0,0.61921692]
[1733067806814,0.07267024,97150.0,97149.0,0.62821692]
[1733067807019,0.07367024,97150.0,97149.0,0.62821692]
[1733067809404,0.07367024,97150.0,97149.0,0.63721692]
[1733067809620,0.07467024,97150.0,97149.0,0.63721692]
[1733067811372,0.06358637,97150.0,97149.0,0.63721692]
[1733067811624,0.0468,97179.0,97167.0,0.205831]
[1733067811868,0.0810274,97184.0,97167.0,0.205831]
[1733067811869,0.0017274,97184.0,97167.0,0.58479712]
[1733067812100,0.0017274,97184.0,97167.0,0.58643483]
[1733067813040,0.00159377,97168.0,97167.0,0.61843483]
[1733067813244,0.00259377,97168.0,97167.0,0.6576345]
[1733067813457,0.00159377,97168.0,97167.0,0.6486345]
[1733067813678,0.00559377,97168.0,97167.0,0.6396345]
[1733067813885,0.00759377,97168.0,97167.0,0.6396345]
[1733067814106,0.00759377,97168.0,97167.0,1.3396345]
[1733067814332,0.01659377,97168.0,97167.0,1.3406345]
[1733067814568,0.0017274,97184.0,97176.0,0.205812]
[1733067814792,0.0017274,97184.0,97176.0,0.58820976]
[1733067815010,0.0017274,97184.0,97176.0,0.89510922]
[1733067815694,0.0017274,97184.0,97176.0,1.62722336]
[1733067816568,0.0077276,97177.0,97176.0,1.62822336]
[1733067817362,0.0017274,97184.0,97183.0,0.355797]
[1733067817608,0.0017274,97184.0,97183.0,0.49075635]
[1733067817843,0.0017274,97184.0,97183.0,0.80288048]
[1733067818531,0.0017274,97184.0,97183.0,0.81188048]
[1733067819742,0.0017274,97184.0,97183.0,0.77976634]
[1733067819989,0.0017274,97184.0,97183.0,0.82074156]
[1733067820487,0.0017274,97184.0,97183.0,0.78876634]
[1733067820916,0.0017274,97184.0,97183.0,0.77976634]
[1733067821234,0.0017274,97184.0,97183.0,0.78876634]
[1733067821457,0.0017274,97184.0,97183.0,0.77976634]
[1733067821904,0.0017274,97184.0,97183.0,0.78876634]
[1733067822122,0.0017274,97184.0,97183.0,0.77976634]
[1733067822849,0.0017274,97184.0,97183.0,0.77076634]
[1733067823081,0.0017274,97184.0,97183.0,0.77976634]
[1733067823565,0.0017274,97184.0,97183.0,0.78876634]
[1733067823796,0.0017274,97184.0,97183.0,0.77976634]
[1733067824248,0.0017274,97184.0,97183.0,0.78876634]
[1733067825895,0.00147172,97184.0,97183.0,0.78876634]
[1733067828248,0.00147172,97184.0,97183.0,0.63876634]
[1733067829884,0.00147172,97184.0,97183.0,0.62076634]
[1733067830128,0.00147172,97184.0,97183.0,0.62976634]
[1733067830803,0.00147172,97184.0,97183.0,0.62076634]
[1733067831270,0.00147172,97184.0,97183.0,0.63876634]
[1733067831503,0.00147172,97184.0,97183.0,0.62976634]
[1733067831723,0.00147172,97184.0,97183.0,0.63876634]
[1733067831949,0.00147172,97184.0,97183.0,0.62976634]
[1733067833042,0.00147172,97184.0,97183.0,0.62076634]
[1733067833487,0.00147172,97184.0,97183.0,0.62976634]
[1733067833703,0.00147172,97184.0,97183.0,0.63876634]
[1733067837998,0.00147172,97184.0,97183.0,0.64049314]
[1733067838917,0.00147172,97184.0,97183.0,0.67255374]
[1733067840693,0.00147172,97184.0,97183.0,0.82255374]
[1733067841147,0.00147172,97184.0,97183.0,0.90285374]
[1733067841376,0.00147172,97184.0,97183.0,0.92585374]
[1733067842305,0.00147172,97184.0,97183.0,0.91685374]
[1733067842545,0.00147172,97184.0,97183.0,1.61685374]
[1733067843238,0.00147172,97184.0,97183.0,1.60785374]
[1733067843483,0.00147172,97184.0,97183.0,1.60885374]
[1733067843718,0.00147172,97184.0,97183.0,1.60785374]
[1733067844136,0.00147172,97184.0,97183.0,1.60885374]
[1733067844360,0.00147172,97184.0,97183.0,1.60985374]
[1733067845258,0.00147172,97184.0,97183.0,1.60885374]
[1733067845488,0.00147172,97184.0,97183.0,1.60985374]
[1733067851518,0.00147172,97184.0,97183.0,1.52955374]
[1733067852001,0.00147172,97184.0,97183.0,2.02952826]
[1733067852229,0.00147172,97184.0,97183.0,1.52955374]
[1733067852706,0.00147172,97184.0,97183.0,2.02952899]
[1733067853606,0.00147172,97184.0,97183.0,1.52955374]
[1733067855269,0.00147172,97184.0,97183.0,0.82955374]
[1733067858272,0.00147172,97184.0,97183.0,1.50655374]
[1733067865598,0.00147172,97184.0,97183.0,1.50696791]
[1733067872462,0.04697172,97184.0,97183.0,1.50696791]
[1733067874252,0.04697172,97184.0,97183.0,0.80696791]
[1733067874941,0.04697172,97184.0,97183.0,0.65696791]
[1733067874942,0.12587172,97184.0,97183.0,0.65696791]
[1733067875823,0.12587172,97184.0,97183.0,0.65596791]
[1733067876062,0.12587172,97184.0,97183.0,0.9667692]
[1733067876282,0.12587172,97184.0,97183.0,0.65496791]
[1733067876518,0.12587172,97184.0,97183.0,0.66396791]
[1733067876959,0.12587172,97184.0,97183.0,0.9757692]
[1733067877186,0.12587172,97184.0,97183.0,0.66396791]
[1733067877935,0.12587172,97184.0,97183.0,0.63190731]
[1733067878395,0.12687172,97184.0,97183.0,0.64090731]
[1733067899967,0.00247172,97184.0,97183.0,0.64090731]
[1733067900609,0.00247172,97184.0,97183.0,0.67300045]
[1733067900818,0.00247172,97184.0,97183.0,0.67300049]
[1733067901240,0.00247172,97184.0,97183.0,0.64090731]
[1733067901460,0.00247172,97184.0,97183.0,0.67300045]
[1733067909551,0.00247172,97184.0,97183.0,0.98480174]
[1733067910192,0.00247172,97184.0,97183.0,0.67300045]
[1733067910408,0.00247172,97184.0,97183.0,0.98480174]
[1733067911381,0.00247172,97184.0,97183.0,0.9850023]
[1733067911624,0.00247172,97184.0,97183.0,0.67300045]
[1733067913060,0.00247172,97184.0,97183.0,0.80370045]
[1733067913275,0.00247172,97184.0,97183.0,0.97670045]
[1733067914205,0.00247172,97184.0,97183.0,0.96770045]
[1733067914455,0.00447172,97184.0,97183.0,1.66870045]
[1733067915141,0.00347172,97184.0,97183.0,1.65970045]
[1733067915557,0.00347172,97184.0,97183.0,1.66870045]
[1733067916076,0.00347172,97184.0,97183.0,1.65970045]
[1733067916556,0.00347172,97184.0,97183.0,1.66070045]
[1733067917021,0.00347172,97184.0,97183.0,2.16116946]
[1733067917280,0.00347172,97184.0,97183.0,1.66070045]
[1733067918374,0.00347172,97184.0,97183.0,2.1610694]
[1733067918844,0.00347172,97184.0,97183.0,1.66070045]
[1733067919279,0.00347172,97184.0,97183.0,0.96070045]
[1733067919505,7.2e-07,97184.0,97183.0,0.96070045]
[1733067920377,7.2e-07,97184.0,97183.0,0.99040688]
[1733067920586,7.2e-07,97184.0,97183.0,1.69040688]
[1733067924011,6e-07,97218.0,97217.0,0.456025]
[1733067924240,6e-07,97218.0,97217.0,0.63967738]
[1733067924471,6e-07,97218.0,97217.0,0.78210316]
[1733067924700,0.0017284,97245.0,97217.0,1.58982983]
[1733067924943,0.0017284,97245.0,97230.0,0.45854221]
[1733067925175,0.0017284,97245.0,97230.0,0.51404932]
[1733067925408,0.0017284,97245.0,97230.0,0.494384]
[1733067925409,0.00190674,97231.0,97230.0,0.494384]
[1733067925855,0.00190674,97231.0,97230.0,1.194384]
[1733067926072,0.00190674,97231.0,97230.0,1.16229086]
[1733067927807,0.00190674,97231.0,97230.0,0.46229086]
[1733067928487,0.00190674,97231.0,97230.0,0.31229086]
[1733067929129,0.00190674,97231.0,97230.0,0.32129086]
[1733067929848,0.00190674,97231.0,97230.0,0.33029086]
[1733067930091,0.00190674,97231.0,97230.0,0.32129086]
[1733067930544,0.00190674,97231.0,97230.0,0.33029086]
[1733067931003,0.00190674,97231.0,97230.0,0.32129086]
[1733067931333,0.00190674,97231.0,97230.0,0.31229086]
[1733067931481,0.00190674,97231.0,97230.0,0.33029086]
[1733067935060,0.00190674,97231.0,97230.0,0.37146086]
[1733067944999,0.00190674,97231.0,97230.0,0.36246086]
[1733067946126,0.00190674,97231.0,97230.0,0.32129086]
[1733067947658,0.00190674,97231.0,97230.0,0.37624086]
[1733067948104,0.00190674,97231.0,97230.0,0.38524086]
[1733067948764,0.00190674,97231.0,97230.0,0.37624086]
[1733067949222,0.00190674,97231.0,97230.0,0.38524086]
[1733067951236,0.00190674,97231.0,97230.0,0.37624086]
[1733067951472,0.00190674,97231.0,97230.0,0.36724086]
[1733067951687,0.00190674,97231.0,97230.0,0.37624086]
[1733067951909,0.00190674,97231.0,97230.0,0.38524086]
[1733067952123,0.00190674,97231.0,97230.0,0.36724086]
[1733067952553,0.00190674,97231.0,97230.0,0.38524086]
[1733067953632,0.00190674,97231.0,97230.0,0.4173102]
[1733067954050,0.00190674,97231.0,97230.0,0.38524086]
[1733067954530,0.00190674,97231.0,97230.0,0.4173102]
[1733067956696,0.00190674,97231.0,97230.0,0.10876799]
[1733067956968,0.04980674,97231.0,97230.0,0.10876799]
[1733067963195,0.04980674,97231.0,97230.0,0.10476799]
[1733067963437,0.04980674,97231.0,97230.0,0.1086412]
[1733067963671,0.12650674,97231.0,97230.0,0.1086412]
[1733067963941,0.12650674,97231.0,97230.0,0.07657186]
[1733067964406,0.12832402,97231.0,97230.0,0.0730516]
[1733067965352,0.12832402,97231.0,97230.0,0.0640516]
[1733067965870,0.12832402,97231.0,97230.0,0.0730516]
[1733067966115,0.14858525,97231.0,97230.0,0.0550516]
[1733067966603,0.14858525,97231.0,97230.0,0.0670516]
[1733067966843,0.12832402,97231.0,97230.0,0.0550516]
[1733067967074,0.12832402,97231.0,97230.0,0.0630516]
[1733067967307,0.12832402,97231.0,97230.0,0.0670516]
[1733067968250,0.12832402,97231.0,97230.0,0.0657556]
[1733067968518,0.12650674,97231.0,97230.0,0.0657556]
[1733067970903,0.12650674,97231.0,97230.0,0.01235295]
[1733067971146,0.12832402,97231.0,97230.0,0.01235295]
[1733067971805,0.12650674,97231.0,97230.0,0.01235295]
[1733067977878,0.12832402,97231.0,97230.0,0.01235295]
[1733067978974,0.12650674,97231.0,97230.0,0.01235295]
[1733067980911,0.12832402,97231.0,97230.0,0.01235295]
[1733067987332,0.12650674,97231.0,97230.0,0.01235295]
[1733067988023,0.12650674,97231.0,97230.0,0.01219443]
[1733067988228,0.04980674,97231.0,97230.0,0.01219443]
[1733067988871,0.00190674,97231.0,97230.0,0.01219443]
[1733067989946,0.00190674,97231.0,97230.0,0.11503964]
[1733067990156,0.00190674,97231.0,97230.0,0.19143964]
[1733067990366,0.00190674,97231.0,97230.0,0.1964604]
[1733067990794,0.00190674,97231.0,97230.0,0.1924604]
[1733067991232,0.00190674,97231.0,97230.0,0.1964604]
[1733067991697,0.00190674,97231.0,97230.0,0.1924604]
[1733067991912,0.00190674,97231.0,97230.0,0.18540745]
[1733067992332,0.00190674,97231.0,97230.0,0.19240745]
[1733067992563,0.00190674,97231.0,97230.0,0.18540745]
[1733067993024,0.00190674,97231.0,97230.0,0.19440745]
[1733067993663,0.00190674,97231.0,97230.0,0.20340745]
[1733067993878,0.00190674,97231.0,97230.0,0.54694804]
[1733067994085,0.00190674,97231.0,97230.0,0.54512791]
[1733067994539,0.00190674,97231.0,97230.0,0.22464966]
[1733067994763,0.00190674,97231.0,97230.0,0.23364966]
[1733067994979,0.00190674,97231.0,97230.0,0.43124966]
[1733067995215,0.0017284,97232.0,97231.0,0.485195]
[1733067995423,0.0017284,97232.0,97231.0,0.62010255]
[1733067995654,0.0017284,97232.0,97231.0,0.93207196]
[1733067996296,0.0017284,97232.0,97231.0,0.94107196]
[1733067997987,0.0017284,97232.0,97231.0,0.95007196]
[1733067999940,0.0012437,97232.0,97231.0,0.95007196]
[1733068000836,7e-07,97232.0,97231.0,1.0281783]
[1733068001043,0.0017284,97245.0,97231.0,1.0281783]
[1733068001044,0.0017284,97245.0,97244.0,0.486068]
[1733068001252,0.0017284,97245.0,97244.0,0.62097555]
[1733068001460,0.0017284,97245.0,97244.0,0.62439184]
[1733068001668,0.0017284,97245.0,97244.0,0.93289184]
[1733068001880,0.0017284,97245.0,97244.0,0.95589184]
[1733068002545,0.0017284,97245.0,97244.0,0.96489184]
[1733068002752,0.0017284,97245.0,97244.0,0.97389184]
[1733068003174,0.00145137,97245.0,97244.0,0.96489184]
[1733068004912,0.00145137,97245.0,97244.0,0.96589184]
[1733068005770,0.00145137,97245.0,97244.0,0.95689184]
[1733068006008,0.00145137,97245.0,97244.0,0.9258295]
[1733068006221,0.00124066,97245.0,97244.0,1.23617599]
[1733068006439,0.00124066,97245.0,97244.0,1.2361756]
[1733068006665,0.00124066,97245.0,97244.0,0.9258295]
[1733068007121,0.001728,97248.0,97245.0,0.461065]
[1733068007434,0.001728,97248.0,97247.0,0.79179959]
[1733068007656,0.001728,97248.0,97247.0,0.56390621]
[1733068007904,0.001728,97248.0,97247.0,0.567296]
[1733068008392,0.001728,97248.0,97247.0,0.875786]
[1733068008872,0.001728,97248.0,97247.0,0.876786]
[1733068009549,0.001728,97248.0,97247.0,0.877786]
[1733068010577,0.001728,97248.0,97247.0,0.923786]
[1733068011224,0.001728,97248.0,97247.0,0.95568]
[1733068011424,1e-06,97248.0,97247.0,0.95568]
[1733068011632,0.0471634,97282.0,97265.0,0.355623]
[1733068011850,0.0471634,97282.0,97265.0,0.53846821]
[1733068012071,0.0471634,97282.0,97265.0,0.85009465]
[1733068012958,0.00232252,97266.0,97265.0,0.85009465]
[1733068013173,0.00232252,97266.0,97265.0,0.85909465]
[1733068013615,0.00232252,97266.0,97265.0,0.86809465]
[1733068015597,0.00232252,97266.0,97265.0,0.78809465]
[1733068018024,0.00232252,97266.0,97265.0,0.79904916]
[1733068022865,0.00232252,97266.0,97265.0,1.10880869]
[1733068023077,0.00232252,97266.0,97265.0,0.79904916]
[1733068023289,0.00232252,97266.0,97265.0,0.83100962]
[1733068028728,0.00232252,97266.0,97265.0,0.82200962]
[1733068028936,0.00232252,97266.0,97265.0,0.83100962]
[1733068029141,0.00232252,97266.0,97265.0,0.82200962]
[1733068029318,0.00232252,97266.0,97265.0,0.83100962]
[1733068034561,0.00232252,97266.0,97265.0,1.32949637]
[1733068034764,0.00232252,97266.0,97265.0,1.32049637]
[1733068034970,0.00232252,97266.0,97265.0,1.32949637]
[1733068035183,0.00232252,97266.0,97265.0,0.83100962]
[1733068035629,0.00232252,97266.0,97265.0,0.82200962]
[1733068035838,0.00232252,97266.0,97265.0,1.32076598]
[1733068036048,0.00232252,97266.0,97265.0,1.32976598]
[1733068036274,0.00232252,97266.0,97265.0,0.83100962]
[1733068043279,0.00232252,97266.0,97265.0,1.33101957]
[1733068043743,0.00232252,97266.0,97265.0,0.83100962]
[1733068044450,0.00232252,97266.0,97265.0,0.87216062]
[1733068044679,0.00232252,97266.0,97265.0,1.37217057]
[1733068044913,0.00232252,97266.0,97265.0,0.87216062]
[1733068047396,0.00232252,97266.0,97265.0,1.37217057]
[1733068047643,0.00232252,97266.0,97265.0,0.87216062]
[1733068047905,0.00232252,97266.0,97265.0,1.37217057]
[1733068048138,0.00232252,97266.0,97265.0,0.87216062]
[1733068049138,0.00232252,97266.0,97265.0,0.97356062]
[1733068049375,0.0008634,97282.0,97274.0,0.355604]
[1733068049627,0.00097994,97275.0,97274.0,0.56880967]
[1733068049911,0.00097994,97275.0,97274.0,0.88062524]
[1733068050880,0.00097994,97275.0,97274.0,0.88962524]
[1733068051131,0.00097994,97275.0,97274.0,1.58962524]
[1733068052408,0.00097994,97275.0,97274.0,1.59862524]
[1733068053340,0.00085968,97275.0,97274.0,1.59862524]
[1733068055990,0.00085968,97275.0,97274.0,1.52022524]
[1733068057650,0.00085968,97275.0,97274.0,0.82022524]
[1733068062919,0.00085968,97275.0,97274.0,0.46462124]
[1733068063158,0.12435968,97275.0,97274.0,0.46462124]
[1733068063368,0.12435968,97275.0,97274.0,0.43266078]
[1733068063821,0.12435968,97275.0,97274.0,0.46473634]
[1733068064946,0.06940968,97275.0,97274.0,0.46473634]
[1733068069911,0.06940968,97275.0,97274.0,0.46472607]
[1733068071816,0.07113648,97275.0,97274.0,0.46472607]
[1733068072900,0.07113648,97275.0,97274.0,0.46472727]
[1733068073320,0.07113648,97275.0,97274.0,0.43266078]
[1733068073523,0.07113648,97275.0,97274.0,0.46472695]
[1733068074236,0.07113648,97275.0,97274.0,0.43266078]
[1733068074846,0.0475268,97275.0,97274.0,0.43266078]
[1733068075283,0.0475268,97275.0,97274.0,0.74440851]
[1733068075489,0.0475268,97275.0,97274.0,0.43266078]
[1733068076327,0.0475268,97275.0,97274.0,0.46472694]
[1733068076775,0.0475268,97275.0,97274.0,0.43266078]
[1733068077404,0.0475268,97275.0,97274.0,0.46472445]
[1733068078726,0.0475268,97275.0,97274.0,0.51967445]
[1733068079800,0.0017268,97275.0,97274.0,0.51967445]
[1733068081762,0.0017268,97275.0,97274.0,1.21967445]
[1733068082445,0.1266268,97275.0,97274.0,1.21967445]
[1733068083095,0.1266268,97275.0,97274.0,0.51967445]
[1733068083961,0.1266268,97275.0,97274.0,0.48761078]
[1733068084406,0.1266268,97275.0,97274.0,0.48847408]
[1733068085447,0.1266268,97275.0,97274.0,0.80023708]
[1733068085852,0.1266268,97275.0,97274.0,0.52054464]
[1733068086486,0.1266268,97275.0,97274.0,0.80024413]
[1733068086694,0.1266268,97275.0,97274.0,0.52054857]
[1733068088961,0.1266268,97275.0,97274.0,0.48847408]
[1733068089164,0.1266268,97275.0,97274.0,0.52056068]
[1733068089372,0.1266268,97275.0,97274.0,0.48847408]
[1733068089575,0.1266268,97275.0,97274.0,0.5205682]
[1733068089773,0.1266268,97275.0,97274.0,0.83233061]
[1733068089978,0.1266268,97275.0,97274.0,0.5205682]
[1733068090825,0.1266268,97275.0,97274.0,0.83230872]
[1733068091240,0.1266268,97275.0,97274.0,0.5205682]
[1733068091446,0.1266268,97275.0,97274.0,0.83230002]
[1733068092280,0.1266268,97275.0,97274.0,0.5205682]
[1733068092485,0.1266268,97275.0,97274.0,0.83225208]
[1733068092690,0.1266268,97275.0,97274.0,0.83219664]
[1733068094565,0.1266268,97275.0,97274.0,0.83212151]
[1733068096023,0.0506268,97275.0,97274.0,0.83212151]
[1733068097494,0.0506268,97275.0,97274.0,0.5205682]
[1733068098724,0.03711694,97275.0,97274.0,0.5205682]
[1733068107915,0.03884434,97275.0,97274.0,0.5205682]
[1733068112016,0.03884434,97275.0,97274.0,0.41772299]
[1733068112240,0.05066162,97275.0,97274.0,0.41772299]
[1733068112467,0.05066162,97275.0,97274.0,0.38562887]
[1733068113115,0.05066162,97275.0,97274.0,0.37662887]
[1733068113354,0.12564434,97275.0,97274.0,0.38562887]
[1733068113562,0.12746162,97275.0,97274.0,0.38562887]
[1733068113955,0.12746162,97275.0,97274.0,0.37662887]
[1733068114371,0.12746162,97275.0,97274.0,0.38562887]
[1733068114975,0.12746162,97275.0,97274.0,0.37662887]
[1733068115178,0.12746162,97275.0,97274.0,0.38462887]
[1733068122853,0.12564434,97275.0,97274.0,0.38462887]
[1733068123056,0.12746162,97275.0,97274.0,0.38462887]
[1733068125479,0.12746162,97275.0,97274.0,0.3812233]
[1733068125901,0.12746162,97275.0,97274.0,0.38458864]
[1733068127709,0.13746162,97275.0,97274.0,0.38458864]
[1733068128595,0.13746162,97275.0,97274.0,0.37658864]
[1733068128821,0.13746162,97275.0,97274.0,0.38158864]
[1733068129031,0.13414726,97275.0,97274.0,0.37258864]
[1733068129239,0.24699247,97275.0,97274.0,0.37258864]